[Event "Late-Titled-Tuesday-Blitz-March-12-2024"]
[Site "Chess.com"]
[Date "2024.03.12"]
[Round "1"]
[White "the_blue_pill"]
[Black "Sokoloco"]
[Result "0-1"]
[WhiteElo "2450"]
[BlackElo "2804"]
[TimeControl "180+1"]
[EndTime "14:07:19 PDT"]
[Termination "Sokoloco won by resignation"]

1. e4 {[%clk 0:03:00.9]} 1... d6 {[%clk 0:02:57.4]} 2. d4 {[%clk 0:03:00.5]}
2... g6 {[%clk 0:02:57.5]} 3. Nc3 {[%clk 0:03:00]} 3... Bg7 {[%clk 0:02:57.9]}
4. Nf3 {[%clk 0:03:00.5]} 4... a6 {[%clk 0:02:57.8]} 5. a4 {[%clk 0:03:00.1]}
5... b6 {[%clk 0:02:58.2]} 6. Bd3 {[%clk 0:02:54.6]} 6... Bb7 {[%clk 0:02:58.5]}
7. Ne2 {[%clk 0:02:54.6]} 7... e6 {[%clk 0:02:53.3]} 8. Ng3 {[%clk 0:02:52.4]}
8... c5 {[%clk 0:02:48.6]} 9. c3 {[%clk 0:02:51.9]} 9... h5 {[%clk 0:02:47.4]}
10. Bg5 {[%clk 0:02:38.6]} 10... Bf6 {[%clk 0:02:16]} 11. h4 {[%clk 0:02:33.4]}
11... Nc6 {[%clk 0:02:10.4]} 12. e5 {[%clk 0:02:12.2]} 12... Bxg5 {[%clk
0:01:45.6]} 13. hxg5 {[%clk 0:02:03.4]} 13... cxd4 {[%clk 0:01:40.5]} 14. cxd4
{[%clk 0:01:58.5]} 14... Nb4 {[%clk 0:01:40.5]} 15. Be4 {[%clk 0:01:38.4]} 15...
d5 {[%clk 0:01:39.1]} 16. Bd3 {[%clk 0:01:33.1]} 16... Nxd3+ {[%clk 0:01:28.9]}
17. Qxd3 {[%clk 0:01:31.9]} 17... a5 {[%clk 0:01:29.8]} 18. Rc1 {[%clk
0:01:17.1]} 18... Ba6 {[%clk 0:01:25.6]} 19. Qb3 {[%clk 0:01:17]} 19... Rc8
{[%clk 0:01:03.9]} 20. Kd2 {[%clk 0:01:06.9]} 20... Ne7 {[%clk 0:00:49.9]} 21.
Rxc8 {[%clk 0:01:03.6]} 21... Nxc8 {[%clk 0:00:46.5]} 22. Rc1 {[%clk 0:01:00.2]}
22... O-O {[%clk 0:00:46.5]} 23. Qc3 {[%clk 0:00:52]} 23... Qe7 {[%clk
0:00:32.7]} 24. Ne2 {[%clk 0:00:41]} 24... Na7 {[%clk 0:00:31.9]} 25. Nf4 {[%clk
0:00:30.2]} 25... Rc8 {[%clk 0:00:30.3]} 26. Qb3 {[%clk 0:00:29.5]} 26... Rxc1
{[%clk 0:00:26.3]} 27. Kxc1 {[%clk 0:00:29.9]} 27... Qc7+ {[%clk 0:00:23.7]} 28.
Kd2 {[%clk 0:00:29.6]} 28... Nc6 {[%clk 0:00:22.2]} 29. Qc3 {[%clk 0:00:27.5]}
29... Qd7 {[%clk 0:00:21.8]} 30. b3 {[%clk 0:00:26.5]} 30... Nb4 {[%clk
0:00:21.4]} 31. Ne1 {[%clk 0:00:20.3]} 31... Qe7 {[%clk 0:00:16.9]} 32. Nh3
{[%clk 0:00:19.5]} 32... b5 {[%clk 0:00:12.5]} 33. Nc2 {[%clk 0:00:17.2]} 33...
bxa4 {[%clk 0:00:09.9]} 34. bxa4 {[%clk 0:00:16.8]} 34... Bc4 {[%clk 0:00:07]}
35. Nxb4 {[%clk 0:00:15.2]} 35... axb4 {[%clk 0:00:07.9]} 36. Qb2 {[%clk
0:00:15]} 36... b3 {[%clk 0:00:08.8]} 37. Kc3 {[%clk 0:00:11.6]} 37... Qd8
{[%clk 0:00:09.1]} 38. Qa3 {[%clk 0:00:11.8]} 38... Qa5+ {[%clk 0:00:09.2]} 39.
Qb4 {[%clk 0:00:12.3]} 39... Qxb4+ {[%clk 0:00:09.1]} 40. Kxb4 {[%clk
0:00:12.7]} 40... b2 {[%clk 0:00:10]} 0-1

[Event "Late-Titled-Tuesday-Blitz-March-12-2024"]
[Site "Chess.com"]
[Date "2024.03.12"]
[Round "1"]
[White "Rud_2008"]
[Black "Practical-Play"]
[Result "1-0"]
[WhiteElo "2766"]
[BlackElo "2440"]
[TimeControl "180+1"]
[EndTime "14:07:25 PDT"]
[Termination "Rud_2008 won on time"]

1. e4 {[%clk 0:03:00.9]} 1... e5 {[%clk 0:02:58.8]} 2. Nf3 {[%clk 0:03:00.8]}
2... Nc6 {[%clk 0:02:58.7]} 3. Nc3 {[%clk 0:03:00.5]} 3... Nf6 {[%clk
0:02:58.5]} 4. d4 {[%clk 0:03:01.2]} 4... exd4 {[%clk 0:02:56.8]} 5. Nxd4 {[%clk
0:03:02.1]} 5... Bc5 {[%clk 0:02:55.5]} 6. Nb3 {[%clk 0:03:01.3]} 6... Bb6
{[%clk 0:02:54.3]} 7. Qe2 {[%clk 0:03:00.9]} 7... O-O {[%clk 0:02:43.7]} 8. Bg5
{[%clk 0:02:53.5]} 8... a5 {[%clk 0:02:41.4]} 9. Nd5 {[%clk 0:02:03]} 9... a4
{[%clk 0:02:33.9]} 10. Bxf6 {[%clk 0:02:02.3]} 10... gxf6 {[%clk 0:02:33]} 11.
Nd2 {[%clk 0:02:02.5]} 11... a3 {[%clk 0:02:28.4]} 12. b3 {[%clk 0:02:00]} 12...
Bc5 {[%clk 0:02:08.3]} 13. O-O-O {[%clk 0:01:36.2]} 13... d6 {[%clk 0:01:53]}
14. Qf3 {[%clk 0:01:29.4]} 14... f5 {[%clk 0:01:28.3]} 15. exf5 {[%clk
0:01:26.1]} 15... Nd4 {[%clk 0:01:28.3]} 16. Qg3+ {[%clk 0:01:00.8]} 16... Kh8
{[%clk 0:01:28.2]} 17. Qc3 {[%clk 0:01:01.4]} 17... f6 {[%clk 0:00:37.1]} 18.
Ne4 {[%clk 0:01:00.6]} 18... c6 {[%clk 0:00:29.1]} 19. Ne3 {[%clk 0:00:54.1]}
19... Qe7 {[%clk 0:00:18.7]} 20. Rxd4 {[%clk 0:00:51.9]} 20... Bxd4 {[%clk
0:00:17.1]} 21. Qxd4 {[%clk 0:00:52.8]} 21... d5 {[%clk 0:00:17.1]} 22. Nc3
{[%clk 0:00:49.5]} 22... c5 {[%clk 0:00:17.4]} 23. Qxd5 {[%clk 0:00:45]} 23...
Rd8 {[%clk 0:00:18]} 24. Qe4 {[%clk 0:00:41.4]} 24... Qd6 {[%clk 0:00:17.9]} 25.
Bd3 {[%clk 0:00:41.4]} 25... Bd7 {[%clk 0:00:16.9]} 26. Ncd5 {[%clk 0:00:34.8]}
26... Bc6 {[%clk 0:00:16.7]} 27. c4 {[%clk 0:00:34.9]} 27... Re8 {[%clk
0:00:15.1]} 28. Qf4 {[%clk 0:00:32.7]} 28... Qd8 {[%clk 0:00:12.8]} 29. g4
{[%clk 0:00:30.5]} 29... b5 {[%clk 0:00:12.7]} 30. Rg1 {[%clk 0:00:29.1]} 30...
bxc4 {[%clk 0:00:13.6]} 31. Bxc4 {[%clk 0:00:29.2]} 31... Bxd5 {[%clk
0:00:09.3]} 32. Nxd5 {[%clk 0:00:28.7]} 32... Re5 {[%clk 0:00:08.1]} 33. Rd1
{[%clk 0:00:25.7]} 33... Qa5 {[%clk 0:00:08.6]} 34. Qf3 {[%clk 0:00:19.3]} 34...
Rd8 {[%clk 0:00:08.5]} 35. g5 {[%clk 0:00:19]} 35... Rdxd5 {[%clk 0:00:03.2]}
36. Bxd5 {[%clk 0:00:19.4]} 36... Rxf5 {[%clk 0:00:03.7]} 37. Qe3 {[%clk
0:00:13.7]} 37... Re5 {[%clk 0:00:03.8]} 38. Qh3 {[%clk 0:00:14.3]} 38... Qb4
{[%clk 0:00:03.2]} 39. Bc4 {[%clk 0:00:14]} 39... f5 {[%clk 0:00:02.4]} 40. g6
{[%clk 0:00:12.7]} 1-0

[Event "Late-Titled-Tuesday-Blitz-March-12-2024"]
[Site "Chess.com"]
[Date "2024.03.12"]
[Round "1"]
[White "DenLaz"]
[Black "Lady_Nika"]
[Result "0-1"]
[WhiteElo "3042"]
[BlackElo "2572"]
[TimeControl "180+1"]
[EndTime "14:07:29 PDT"]
[Termination "Lady_Nika won by resignation"]

1. d4 {[%clk 0:03:00.9]} 1... d5 {[%clk 0:02:59.9]} 2. c4 {[%clk 0:03:00.1]}
2... e6 {[%clk 0:03:00.2]} 3. Nf3 {[%clk 0:03:00.8]} 3... f5 {[%clk 0:03:00.3]}
4. Nc3 {[%clk 0:03:00.3]} 4... Nf6 {[%clk 0:03:00.7]} 5. Bf4 {[%clk 0:03:00.8]}
5... c6 {[%clk 0:03:01.1]} 6. e3 {[%clk 0:03:00]} 6... Bd6 {[%clk 0:03:01.5]} 7.
Bxd6 {[%clk 0:02:56.3]} 7... Qxd6 {[%clk 0:03:01.5]} 8. Bd3 {[%clk 0:02:56.9]}
8... O-O {[%clk 0:03:01.6]} 9. Qc2 {[%clk 0:02:56.8]} 9... Ne4 {[%clk
0:03:01.8]} 10. O-O {[%clk 0:02:57.3]} 10... Nd7 {[%clk 0:03:01.6]} 11. Rab1
{[%clk 0:02:57.3]} 11... a6 {[%clk 0:03:00.2]} 12. b4 {[%clk 0:02:56.8]} 12...
b5 {[%clk 0:02:58.2]} 13. c5 {[%clk 0:02:54.3]} 13... Qe7 {[%clk 0:02:57.9]} 14.
a4 {[%clk 0:02:54.6]} 14... e5 {[%clk 0:02:55.5]} 15. Ra1 {[%clk 0:02:55]} 15...
Nxc3 {[%clk 0:02:53]} 16. Qxc3 {[%clk 0:02:41.5]} 16... e4 {[%clk 0:02:52.9]}
17. axb5 {[%clk 0:02:42.2]} 17... exf3 {[%clk 0:02:11.1]} 18. gxf3 {[%clk
0:02:43.1]} 18... cxb5 {[%clk 0:02:09.8]} 19. Bxb5 {[%clk 0:02:36.8]} 19... Nf6
{[%clk 0:02:06]} 20. Bd3 {[%clk 0:02:33]} 20... f4 {[%clk 0:02:02.1]} 21. Kh1
{[%clk 0:02:29.2]} 21... fxe3 {[%clk 0:02:00.5]} 22. Rae1 {[%clk 0:02:24.5]}
22... Bh3 {[%clk 0:01:55.6]} 23. Rxe3 {[%clk 0:02:23.2]} 23... Qf7 {[%clk
0:01:52.3]} 24. Rg1 {[%clk 0:02:23]} 24... Rae8 {[%clk 0:01:47.9]} 25. Bxa6
{[%clk 0:02:18.4]} 25... Nh5 {[%clk 0:01:43.2]} 26. c6 {[%clk 0:01:51.3]} 26...
Rxe3 {[%clk 0:01:24.6]} 27. Qxe3 {[%clk 0:01:52.2]} 27... Re8 {[%clk 0:01:13.5]}
28. Qc3 {[%clk 0:01:43.3]} 28... Nf4 {[%clk 0:01:12.9]} 29. c7 {[%clk 0:01:17]}
29... Bc8 {[%clk 0:01:11.3]} 30. Bb5 {[%clk 0:00:24.9]} 30... Re7 {[%clk
0:01:01.2]} 31. Re1 {[%clk 0:00:14]} 31... Rxc7 {[%clk 0:00:49.6]} 32. Qe3
{[%clk 0:00:08.6]} 32... Be6 {[%clk 0:00:45.4]} 33. Bf1 {[%clk 0:00:08]} 33...
h6 {[%clk 0:00:44.4]} 34. b5 {[%clk 0:00:08.5]} 34... Rb7 {[%clk 0:00:40.1]} 35.
Rb1 {[%clk 0:00:07.8]} 35... Bh3 {[%clk 0:00:26.5]} 36. Bxh3 {[%clk 0:00:07.2]}
36... Nxh3 {[%clk 0:00:26.5]} 37. b6 {[%clk 0:00:05.9]} 37... Qg6 {[%clk
0:00:25.6]} 38. Rc1 {[%clk 0:00:03.2]} 38... Rxb6 {[%clk 0:00:22]} 39. f4 {[%clk
0:00:03.7]} 39... Qe4+ {[%clk 0:00:20.6]} 40. Qxe4 {[%clk 0:00:04.2]} 40...
Nxf2+ {[%clk 0:00:21]} 0-1

[Event "Late-Titled-Tuesday-Blitz-March-12-2024"]
[Site "Chess.com"]
[Date "2024.03.12"]
[Round "1"]
[White "CarlosAlbornoz"]
[Black "KetiTsatsalashvili"]
[Result "1-0"]
[WhiteElo "2779"]
[BlackElo "2442"]
[TimeControl "180+1"]
[EndTime "14:07:30 PDT"]
[Termination "CarlosAlbornoz won by resignation"]

1. e4 {[%clk 0:02:02.4]} 1... c5 {[%clk 0:02:58.4]} 2. Nf3 {[%clk 0:02:02.6]}
2... d6 {[%clk 0:02:58.2]} 3. Bb5+ {[%clk 0:02:02.5]} 3... Bd7 {[%clk
0:02:57.9]} 4. Bxd7+ {[%clk 0:02:02.4]} 4... Nxd7 {[%clk 0:02:57.9]} 5. O-O
{[%clk 0:02:03.1]} 5... g6 {[%clk 0:02:58.1]} 6. c3 {[%clk 0:02:03.2]} 6... Bg7
{[%clk 0:02:58.2]} 7. d4 {[%clk 0:02:03.4]} 7... Ngf6 {[%clk 0:02:56.8]} 8. Re1
{[%clk 0:02:03.8]} 8... d5 {[%clk 0:02:53.1]} 9. e5 {[%clk 0:01:57.5]} 9... Ne4
{[%clk 0:02:53.4]} 10. Nbd2 {[%clk 0:01:57.6]} 10... Nxd2 {[%clk 0:02:53.3]} 11.
Bxd2 {[%clk 0:01:58.5]} 11... O-O {[%clk 0:02:51.7]} 12. e6 {[%clk 0:01:54.8]}
12... fxe6 {[%clk 0:02:51.6]} 13. Rxe6 {[%clk 0:01:55.7]} 13... cxd4 {[%clk
0:02:50.3]} 14. cxd4 {[%clk 0:01:55]} 14... Nf6 {[%clk 0:02:35.6]} 15. Qb3
{[%clk 0:01:54.2]} 15... Kh8 {[%clk 0:02:24.7]} 16. Bb4 {[%clk 0:01:47.3]} 16...
Re8 {[%clk 0:02:21.3]} 17. Rae1 {[%clk 0:01:40.2]} 17... Ne4 {[%clk 0:02:20]}
18. Ne5 {[%clk 0:01:17.9]} 18... Bxe5 {[%clk 0:02:11.9]} 19. Rxe5 {[%clk
0:01:18.8]} 19... e6 {[%clk 0:02:10.9]} 20. f3 {[%clk 0:01:17.5]} 20... Ng5
{[%clk 0:02:03.5]} 21. Qe3 {[%clk 0:01:13]} 21... h6 {[%clk 0:01:55.8]} 22. h4
{[%clk 0:01:09.6]} 22... Nf7 {[%clk 0:01:56]} 23. Rxe6 {[%clk 0:01:09.6]} 23...
Rxe6 {[%clk 0:01:56.6]} 24. Qxe6 {[%clk 0:01:09.7]} 24... Kg7 {[%clk 0:01:45.1]}
25. Be7 {[%clk 0:01:08]} 25... Qb6 {[%clk 0:01:38.2]} 26. Qxd5 {[%clk 0:00:55]}
26... Rc8 {[%clk 0:01:32.8]} 27. h5 {[%clk 0:00:50.3]} 27... gxh5 {[%clk
0:01:30.3]} 28. Re6 {[%clk 0:00:44]} 28... Rc1+ {[%clk 0:01:27.9]} 29. Kh2
{[%clk 0:00:44.1]} 29... Qc7+ {[%clk 0:01:26.3]} 30. Bd6 {[%clk 0:00:44.2]}
30... Nxd6 {[%clk 0:01:23.4]} 31. Qe5+ {[%clk 0:00:43.9]} 31... Kf8 {[%clk
0:01:12.3]} 32. Rxd6 {[%clk 0:00:35.1]} 32... Rc6 {[%clk 0:01:05.9]} 33. Rxc6
{[%clk 0:00:21.7]} 33... Qxc6 {[%clk 0:01:05.7]} 34. Qxh5 {[%clk 0:00:20.5]}
34... Qd6+ {[%clk 0:01:03.2]} 35. Qe5 {[%clk 0:00:20.6]} 35... Qa6 {[%clk
0:00:52.7]} 36. a3 {[%clk 0:00:18.1]} 36... Qb6 {[%clk 0:00:47.9]} 37. Qc5+
{[%clk 0:00:17.3]} 37... Qxc5 {[%clk 0:00:47.4]} 38. dxc5 {[%clk 0:00:18.2]}
38... Ke7 {[%clk 0:00:48.3]} 39. b4 {[%clk 0:00:18.2]} 39... Ke6 {[%clk
0:00:47.4]} 40. g4 {[%clk 0:00:18.6]} 40... Kd5 {[%clk 0:00:47.4]} 41. Kg3
{[%clk 0:00:19.1]} 41... Kc4 {[%clk 0:00:46.8]} 42. f4 {[%clk 0:00:18.5]} 42...
a6 {[%clk 0:00:44.7]} 43. g5 {[%clk 0:00:18.6]} 43... hxg5 {[%clk 0:00:44]} 44.
fxg5 {[%clk 0:00:19.5]} 44... Kb3 {[%clk 0:00:44.2]} 45. g6 {[%clk 0:00:19.9]}
45... Kxa3 {[%clk 0:00:44.8]} 46. g7 {[%clk 0:00:20.8]} 46... Kxb4 {[%clk
0:00:45.2]} 47. g8=Q {[%clk 0:00:20.8]} 47... Kxc5 {[%clk 0:00:45.7]} 48. Kf3
{[%clk 0:00:21.3]} 48... a5 {[%clk 0:00:44.7]} 49. Ke3 {[%clk 0:00:21.7]} 49...
Kb4 {[%clk 0:00:45.2]} 50. Kd3 {[%clk 0:00:22.1]} 50... b5 {[%clk 0:00:44.1]}
51. Qd5 {[%clk 0:00:21.5]} 51... a4 {[%clk 0:00:43.3]} 52. Kc2 {[%clk
0:00:20.5]} 52... Ka5 {[%clk 0:00:37.5]} 53. Qc5 {[%clk 0:00:19.8]} 53... Ka6
{[%clk 0:00:36.6]} 54. Kc3 {[%clk 0:00:20]} 54... a3 {[%clk 0:00:35.9]} 55.
Qxa3+ {[%clk 0:00:19.7]} 1-0

[Event "Late-Titled-Tuesday-Blitz-March-12-2024"]
[Site "Chess.com"]
[Date "2024.03.12"]
[Round "1"]
[White "norwaytoadog"]
[Black "Skatchkov_V"]
[Result "0-1"]
[WhiteElo "2325"]
[BlackElo "2675"]
[TimeControl "180+1"]
[EndTime "14:07:38 PDT"]
[Termination "Skatchkov_V won on time"]

1. e4 {[%clk 0:03:00]} 1... e5 {[%clk 0:03:00.4]} 2. Nf3 {[%clk 0:03:00.2]} 2...
Nf6 {[%clk 0:03:01.1]} 3. Nxe5 {[%clk 0:02:59.5]} 3... d6 {[%clk 0:03:01.5]} 4.
Nf3 {[%clk 0:02:59.5]} 4... Nxe4 {[%clk 0:03:01.3]} 5. d4 {[%clk 0:02:59.7]}
5... d5 {[%clk 0:03:01.6]} 6. Bd3 {[%clk 0:02:59.9]} 6... Bd6 {[%clk 0:03:02.3]}
7. O-O {[%clk 0:02:59]} 7... O-O {[%clk 0:03:02.6]} 8. Re1 {[%clk 0:02:57.8]}
8... Bf5 {[%clk 0:03:02.6]} 9. Nbd2 {[%clk 0:02:55]} 9... Re8 {[%clk 0:02:51.2]}
10. Nf1 {[%clk 0:02:44.2]} 10... c6 {[%clk 0:02:46.4]} 11. Ng3 {[%clk
0:02:42.8]} 11... Nxg3 {[%clk 0:02:45.7]} 12. hxg3 {[%clk 0:02:41]} 12... Rxe1+
{[%clk 0:02:44.5]} 13. Nxe1 {[%clk 0:02:36.6]} 13... Qf6 {[%clk 0:02:44.2]} 14.
c3 {[%clk 0:02:33.5]} 14... Nd7 {[%clk 0:02:42.1]} 15. Qf3 {[%clk 0:02:24.6]}
15... Bxd3 {[%clk 0:02:41.3]} 16. Nxd3 {[%clk 0:02:22.5]} 16... Re8 {[%clk
0:02:39.5]} 17. Kf1 {[%clk 0:01:59.8]} 17... Qg6 {[%clk 0:02:24.6]} 18. Bd2
{[%clk 0:01:48.7]} 18... Nf6 {[%clk 0:02:15.4]} 19. Kg1 {[%clk 0:01:20]} 19...
Ne4 {[%clk 0:02:08.7]} 20. Bf4 {[%clk 0:01:18]} 20... Bxf4 {[%clk 0:01:41.6]}
21. Nxf4 {[%clk 0:01:02.1]} 21... Qf5 {[%clk 0:01:36.1]} 22. Re1 {[%clk
0:00:58.9]} 22... Re7 {[%clk 0:01:35.6]} 23. Qe3 {[%clk 0:00:43.9]} 23... g5
{[%clk 0:01:16.4]} 24. Nd3 {[%clk 0:00:37.8]} 24... Re6 {[%clk 0:01:16.4]} 25.
Ne5 {[%clk 0:00:29.3]} 25... h5 {[%clk 0:01:04.8]} 26. Qf3 {[%clk 0:00:20.9]}
26... Qh7 {[%clk 0:00:48.1]} 27. g4 {[%clk 0:00:18.2]} 27... f6 {[%clk
0:00:45.2]} 28. Nd3 {[%clk 0:00:15.1]} 28... Kf7 {[%clk 0:00:15.7]} 29. Qf5
{[%clk 0:00:10.9]} 29... Qxf5 {[%clk 0:00:12.6]} 30. gxf5 {[%clk 0:00:11.2]}
30... Re7 {[%clk 0:00:12.3]} 31. g3 {[%clk 0:00:07.6]} 31... Nd6 {[%clk
0:00:12.5]} 32. Rxe7+ {[%clk 0:00:07.3]} 32... Kxe7 {[%clk 0:00:13.4]} 33. Nc5
{[%clk 0:00:06]} 33... b6 {[%clk 0:00:13.9]} 34. Na4 {[%clk 0:00:04.6]} 34...
Nxf5 {[%clk 0:00:13.9]} 35. b4 {[%clk 0:00:04.2]} 35... Nd6 {[%clk 0:00:14]} 36.
Kf1 {[%clk 0:00:04]} 36... Ne4 {[%clk 0:00:13.4]} 37. Ke2 {[%clk 0:00:03.8]}
37... b5 {[%clk 0:00:13.9]} 38. Nc5 {[%clk 0:00:03.3]} 38... Nxc5 {[%clk
0:00:14.2]} 39. bxc5 {[%clk 0:00:02.3]} 39... a5 {[%clk 0:00:14.2]} 40. Kf3
{[%clk 0:00:01.6]} 40... Ke6 {[%clk 0:00:14.6]} 41. Ke3 {[%clk 0:00:01.2]} 41...
Kf5 {[%clk 0:00:14.9]} 42. Kf3 {[%clk 0:00:01.1]} 42... h4 {[%clk 0:00:14.7]}
0-1

[Event "Late-Titled-Tuesday-Blitz-March-12-2024"]
[Site "Chess.com"]
[Date "2024.03.12"]
[Round "1"]
[White "kinga2008"]
[Black "The_Machine04"]
[Result "0-1"]
[WhiteElo "2455"]
[BlackElo "2810"]
[TimeControl "180+1"]
[EndTime "14:07:42 PDT"]
[Termination "The_Machine04 won by resignation"]

1. e4 {[%clk 0:02:55.3]} 1... d6 {[%clk 0:02:59.2]} 2. Nf3 {[%clk 0:02:50.3]}
2... Nf6 {[%clk 0:02:58.4]} 3. Nc3 {[%clk 0:02:46.1]} 3... e5 {[%clk 0:02:58.4]}
4. d4 {[%clk 0:02:41.3]} 4... Nbd7 {[%clk 0:02:58]} 5. dxe5 {[%clk 0:02:35.4]}
5... dxe5 {[%clk 0:02:58.8]} 6. Bg5 {[%clk 0:02:34.7]} 6... Be7 {[%clk
0:02:57.5]} 7. Bc4 {[%clk 0:02:34.3]} 7... c6 {[%clk 0:02:56.4]} 8. O-O {[%clk
0:02:33.6]} 8... O-O {[%clk 0:02:52.8]} 9. h3 {[%clk 0:02:28.8]} 9... h6 {[%clk
0:02:52.8]} 10. Bh4 {[%clk 0:02:27.5]} 10... b5 {[%clk 0:02:52.3]} 11. Bd3
{[%clk 0:02:27]} 11... a5 {[%clk 0:02:51.7]} 12. Bg3 {[%clk 0:02:27.1]} 12...
Qc7 {[%clk 0:02:49.6]} 13. Qe2 {[%clk 0:02:19.9]} 13... a4 {[%clk 0:02:47]} 14.
Nd1 {[%clk 0:02:18]} 14... Re8 {[%clk 0:02:45.5]} 15. Ne3 {[%clk 0:02:17.5]}
15... Bf8 {[%clk 0:02:43.4]} 16. Nf5 {[%clk 0:02:11.3]} 16... g6 {[%clk
0:02:39.8]} 17. Ne3 {[%clk 0:02:09.7]} 17... Nh5 {[%clk 0:02:39.2]} 18. Bh2
{[%clk 0:02:08.5]} 18... Nf4 {[%clk 0:02:38.3]} 19. Bxf4 {[%clk 0:02:08.2]}
19... exf4 {[%clk 0:02:39.2]} 20. Ng4 {[%clk 0:02:09.1]} 20... h5 {[%clk
0:02:36.8]} 21. Ngh2 {[%clk 0:02:07.2]} 21... Bg7 {[%clk 0:02:33.4]} 22. c3
{[%clk 0:02:05.3]} 22... a3 {[%clk 0:02:32.4]} 23. Rfc1 {[%clk 0:01:59.7]} 23...
axb2 {[%clk 0:02:31.7]} 24. Qxb2 {[%clk 0:01:58.9]} 24... Nc5 {[%clk 0:02:32.1]}
25. Qe2 {[%clk 0:01:55]} 25... Be6 {[%clk 0:02:26.2]} 26. Nd4 {[%clk 0:01:53.5]}
26... Nxd3 {[%clk 0:02:14.5]} 27. Qxd3 {[%clk 0:01:51.9]} 27... Bc4 {[%clk
0:02:14.1]} 28. Qc2 {[%clk 0:01:40.4]} 28... Ra3 {[%clk 0:02:01.9]} 29. Qb2
{[%clk 0:01:30.2]} 29... Rea8 {[%clk 0:01:59.9]} 30. Nhf3 {[%clk 0:01:25.3]}
30... Rxa2 {[%clk 0:01:54.6]} 31. Rxa2 {[%clk 0:01:20.6]} 31... Rxa2 {[%clk
0:01:55.5]} 32. Qb1 {[%clk 0:01:09.1]} 32... Qd7 {[%clk 0:01:37.4]} 33. Rd1
{[%clk 0:01:02.2]} 33... Qe8 {[%clk 0:01:03.8]} 34. Nd2 {[%clk 0:00:48.2]} 34...
Ra4 {[%clk 0:01:03.2]} 35. Nxc4 {[%clk 0:00:26.1]} 35... Rxc4 {[%clk 0:01:04.1]}
36. Qd3 {[%clk 0:00:25.8]} 36... c5 {[%clk 0:00:58.7]} 37. Nf3 {[%clk
0:00:24.6]} 37... Rxc3 {[%clk 0:00:39.8]} 38. Qd2 {[%clk 0:00:20.3]} 38... b4
{[%clk 0:00:39.1]} 39. Qxf4 {[%clk 0:00:18.3]} 39... b3 {[%clk 0:00:35.3]} 40.
Qd2 {[%clk 0:00:14.9]} 40... Qxe4 {[%clk 0:00:19.7]} 41. Qd8+ {[%clk 0:00:11.5]}
41... Bf8 {[%clk 0:00:20]} 42. Ng5 {[%clk 0:00:11.3]} 42... Qe7 {[%clk
0:00:15.6]} 43. Qd2 {[%clk 0:00:07.8]} 43... Rc2 {[%clk 0:00:14.4]} 44. Qf4
{[%clk 0:00:05.8]} 44... b2 {[%clk 0:00:14.5]} 45. Ne4 {[%clk 0:00:04.2]} 45...
Rc1 {[%clk 0:00:12.5]} 46. Nf6+ {[%clk 0:00:03.9]} 46... Qxf6 {[%clk 0:00:13]}
0-1

[Event "Late-Titled-Tuesday-Blitz-March-12-2024"]
[Site "Chess.com"]
[Date "2024.03.12"]
[Round "1"]
[White "GlavkonVVS"]
[Black "KSho99"]
[Result "1-0"]
[WhiteElo "2589"]
[BlackElo "2138"]
[TimeControl "180+1"]
[EndTime "14:07:43 PDT"]
[Termination "GlavkonVVS won by checkmate"]

1. c4 {[%clk 0:03:00.9]} 1... e6 {[%clk 0:02:59]} 2. Nf3 {[%clk 0:02:59.6]} 2...
b6 {[%clk 0:02:55.1]} 3. g3 {[%clk 0:02:58.6]} 3... Bb7 {[%clk 0:02:55.2]} 4.
Bg2 {[%clk 0:02:59]} 4... f5 {[%clk 0:02:49.5]} 5. O-O {[%clk 0:02:58.7]} 5...
Nf6 {[%clk 0:02:49.6]} 6. Nc3 {[%clk 0:02:59.1]} 6... Bb4 {[%clk 0:02:46.9]} 7.
Qb3 {[%clk 0:02:51.2]} 7... Nc6 {[%clk 0:02:41.3]} 8. a3 {[%clk 0:02:50.3]} 8...
Bxc3 {[%clk 0:02:40.9]} 9. Qxc3 {[%clk 0:02:50.6]} 9... O-O {[%clk 0:02:39.8]}
10. b4 {[%clk 0:02:49.6]} 10... Ne4 {[%clk 0:02:37.1]} 11. Qc2 {[%clk
0:02:48.9]} 11... a5 {[%clk 0:02:29.2]} 12. d3 {[%clk 0:02:47.2]} 12... Nf6
{[%clk 0:02:22]} 13. b5 {[%clk 0:02:40.5]} 13... Ne7 {[%clk 0:02:19.9]} 14. Bb2
{[%clk 0:02:39.4]} 14... Qe8 {[%clk 0:02:10]} 15. a4 {[%clk 0:02:37.6]} 15...
Qh5 {[%clk 0:02:04]} 16. c5 {[%clk 0:02:17]} 16... Rac8 {[%clk 0:01:47.1]} 17.
Rac1 {[%clk 0:02:14.1]} 17... f4 {[%clk 0:01:19.5]} 18. Qd2 {[%clk 0:01:50.8]}
18... fxg3 {[%clk 0:01:13.5]} 19. fxg3 {[%clk 0:01:47.4]} 19... bxc5 {[%clk
0:01:07.5]} 20. e4 {[%clk 0:01:25.7]} 20... d6 {[%clk 0:01:03.7]} 21. Qxa5
{[%clk 0:01:18]} 21... Ng4 {[%clk 0:00:53.4]} 22. Qd2 {[%clk 0:01:17.4]} 22...
Ng6 {[%clk 0:00:38.9]} 23. h3 {[%clk 0:01:16.8]} 23... N4e5 {[%clk 0:00:35.5]}
24. Ng5 {[%clk 0:01:13.1]} 24... Nxd3 {[%clk 0:00:20.3]} 25. Nxe6 {[%clk
0:01:02.5]} 25... Nxc1 {[%clk 0:00:20.1]} 26. Nxf8 {[%clk 0:00:59.6]} 26... Ne2+
{[%clk 0:00:20.1]} 27. Kh2 {[%clk 0:00:57.9]} 27... Rxf8 {[%clk 0:00:19.9]} 28.
Rxf8+ {[%clk 0:00:53.6]} 28... Nxf8 {[%clk 0:00:20.1]} 29. a5 {[%clk 0:00:47.2]}
29... Nd4 {[%clk 0:00:18.8]} 30. a6 {[%clk 0:00:43.6]} 30... Ba8 {[%clk
0:00:12.9]} 31. Bxd4 {[%clk 0:00:42.7]} 31... cxd4 {[%clk 0:00:12.4]} 32. Qa5
{[%clk 0:00:35.5]} 32... d3 {[%clk 0:00:09.7]} 33. a7 {[%clk 0:00:33.1]} 33...
Qe2 {[%clk 0:00:08.5]} 34. Qa4 {[%clk 0:00:17.1]} 34... d2 {[%clk 0:00:08]} 35.
Qa2+ {[%clk 0:00:16.5]} 35... Kh8 {[%clk 0:00:06.4]} 36. Qf7 {[%clk 0:00:16.3]}
36... h6 {[%clk 0:00:01.4]} 37. Qxf8+ {[%clk 0:00:15.8]} 37... Kh7 {[%clk
0:00:02]} 38. Qf5+ {[%clk 0:00:15.9]} 38... Kh8 {[%clk 0:00:02.4]} 39. Qc8+
{[%clk 0:00:15.9]} 39... Kh7 {[%clk 0:00:02.8]} 40. Qxa8 {[%clk 0:00:16]} 40...
d1=Q {[%clk 0:00:03.1]} 41. Qf8 {[%clk 0:00:11.6]} 41... Qdd2 {[%clk 0:00:02.3]}
42. Qf5+ {[%clk 0:00:09.3]} 42... g6 {[%clk 0:00:02.3]} 43. Qf7+ {[%clk
0:00:09]} 43... Kh8 {[%clk 0:00:02.7]} 44. a8=Q# {[%clk 0:00:09.5]} 1-0